fUST/lending_fUST_20250223
["ID","MTS","AMOUNT","RATE_DAILY","PERIOD"]
[354142277,1740282645263,-500.0,0.00014873,2]
[354142278,1740282645271,-509.04158611,0.00014873,2]
[354142279,1740282645281,-500.0,0.00014873,2]
[354142280,1740282645290,-500.10290801,0.00014873,2]
[354142281,1740282645299,-502.47157931,0.00014873,2]
[354142282,1740282645308,-622.1309853,0.00014873,2]
[354142283,1740282645317,-500.0,0.00014873,2]
[354142284,1740282645327,-501.01108224,0.00014873,2]
[354142285,1740282645337,-500.78601293,0.00014873,2]
[354142286,1740282645346,-500.0,0.00014873,2]
[354142287,1740282645356,-500.0,0.00014873,2]
[354142288,1740282645369,-163.03544173,0.00014873,2]
[354142289,1740282645379,-500.29863877,0.00014873,2]
[354142290,1740282645390,-588.16130816,0.00014873,2]
[354142291,1740282645399,-500.0,0.00014873,2]
[354142292,1740282645410,-171.12504259,0.00014873,2]
[354142293,1740282645420,-500.0,0.00014873,2]
[354142294,1740282645429,-500.0,0.00014873,2]
[354142295,1740282645441,-156.90533495,0.00014873,2]
[354142296,1740282645451,-500.0,0.00014873,2]
[354142297,1740282645460,-251.51484246,0.00014873,2]
[354142298,1740282645469,-4736.96066309,0.00014898,2]
[354142299,1740282645478,-174.17096562,0.00014898,2]
[354142300,1740282645487,-3000.0,0.00014898,2]
[354142301,1740282645496,-500.0,0.00014899,2]
[354142302,1740282645506,-500.0,0.00014899,2]
[354142303,1740282645517,-500.0,0.00014899,2]
[354142304,1740282645527,-500.0,0.00014899,2]
[354142305,1740282645536,-611.67,0.00014899,2]
[354142306,1740282645545,-1184.51,0.00014899,2]
[354142307,1740282645554,-500.0,0.00014899,2]
[354142308,1740282645563,-500.0,0.00014899,2]
[354142309,1740282645573,-593.96,0.00014899,2]
[354142310,1740282645666,-500.0,0.00014899,2]
[354142311,1740282645676,-500.0,0.00014899,2]
[354142312,1740282645686,-500.0,0.00014899,2]
[354142313,1740282645697,-3231.29,0.00014899,2]
[354142314,1740282645707,-500.0,0.00014899,2]
[354142315,1740282645717,-256.98763593,0.00014899,2]
[354142316,1740282645728,-500.0,0.00014899,2]
[354142317,1740282645738,-1607.15,0.00014899,2]
[354142318,1740282645747,-214.69266042,0.00014899,2]
[354142319,1740282645757,-462.57557449,0.00014899,2]
[354142320,1740282645766,-8222.5,0.00014899,2]
[354142321,1740282645776,-500.0,0.00014899,2]
[354142322,1740282645785,-620.3592444,0.00014899,2]
[354142323,1740282645795,-35509.17861141,0.000149,2]
[354142324,1740282645805,-415.56966932,0.000149,2]
[354142569,1740282666346,295.0,0.00019,120]
[354142570,1740282754233,290.540375,9.041e-05,2]
[354143175,1740283837680,-174.17096562,0.0001406,2]
[354143177,1740283837689,-500.0,0.00014158,2]
[354143179,1740283837698,-27.62902595,0.00014158,2]
[354143721,1740283842856,-472.37097405,0.00014158,2]
[354143723,1740283842866,-500.0,0.00014158,2]
[354143724,1740283842875,-500.0,0.00014158,2]
[354143726,1740283842885,-500.0,0.00014158,2]
[354143728,1740283842894,-500.0,0.00014158,2]
[354143730,1740283842904,-500.0,0.00014158,2]
[354143732,1740283842913,-2154.19,0.00014158,2]
[354143733,1740283842922,-500.0,0.00014158,2]
[354143735,1740283842931,-256.98763593,0.00014158,2]
[354143737,1740283842940,-214.69266042,0.00014158,2]
[354143739,1740283842950,-5510.91,0.00014158,2]
[354143741,1740283842959,-500.0,0.00014158,2]
[354143742,1740283842968,-620.3592444,0.00014158,2]
[354143745,1740283842977,-673.35,0.00014158,2]
[354143747,1740283842987,-1071.43,0.00014158,2]
[354143750,1740283842996,-500.0,0.00014158,2]
[354143753,1740283843006,-462.57557449,0.00014158,2]
[354143756,1740283843015,-517.93,0.00014158,2]
[354143758,1740283843024,-500.0,0.00014158,2]
[354143761,1740283843033,-869.66,0.00014158,2]
[354143762,1740283843042,-500.0,0.00014158,2]
[354143765,1740283843052,-500.0,0.00014158,2]
[354143768,1740283843061,-500.0,0.00014158,2]
[354143771,1740283843071,-500.0,0.00014158,2]
[354143773,1740283843080,-789.68,0.00014158,2]
[354143774,1740283843089,-500.0,0.00014159,2]
[354143776,1740283843099,-536.33,0.00014159,2]
[354143778,1740283843108,-500.0,0.00014159,2]
[354143780,1740283843117,-507.95055221,0.00014159,2]
[354143782,1740283843126,-504.62930519,0.00014159,2]
[354143784,1740283843135,-331.14627734,0.00014159,2]
[354143786,1740283843145,-500.0,0.00014159,2]
[354143788,1740283843154,-500.0,0.00014159,2]
[354143789,1740283843163,-500.0,0.00014159,2]
[354143791,1740283843173,-500.0,0.00014159,2]
[354143793,1740283843183,-500.0,0.00014159,2]
[354143795,1740283843192,-500.0,0.00014159,2]
[354143797,1740283843202,-500.0,0.00014159,2]
[354143799,1740283843211,-500.0,0.00014159,2]
[354143800,1740283843220,-500.0,0.00014159,2]
[354143802,1740283843229,-500.0,0.00014159,2]
[354143804,1740283843239,-509.53251834,0.00014159,2]
[354143806,1740283843249,-500.0,0.00014159,2]
[354143808,1740283843258,-500.0,0.0001416,2]
[354143810,1740283843267,-1002.82834528,0.0001416,2]
[354143812,1740283843276,-4032.9524177,0.0001416,7]
[354143813,1740283843286,-500.0,0.0001416,2]
[354143815,1740283843295,-500.0,0.00014164,2]
[354143817,1740283843306,-535.6778158,0.0001424,2]
[354143819,1740283843315,-500.0,0.0001424,2]
[354143821,1740283843325,-500.0,0.0001424,2]
[354143823,1740283843334,-500.0,0.0001424,2]
[354143825,1740283843344,-500.0,0.0001424,2]
[354143827,1740283843354,-500.0,0.0001424,2]
[354143829,1740283843363,-500.0,0.0001424,2]
[354143831,1740283843374,-2154.19,0.0001424,2]
[354143833,1740283843384,-500.0,0.0001424,2]
[354143834,1740283843394,-5510.91,0.0001424,2]
[354143836,1740283843404,-500.0,0.0001424,2]
[354143838,1740283843415,-673.35,0.0001424,2]
[354143840,1740283843425,-1071.43,0.0001424,2]
[354143842,1740283843434,-500.0,0.0001424,2]
[354143844,1740283843443,-517.93,0.0001424,2]
[354143846,1740283843453,-560.52175518,0.0001424,2]
[354143848,1740283843463,-869.66,0.0001424,2]
[354143850,1740283843472,-500.0,0.0001424,2]
[354143852,1740283843482,-500.0,0.0001424,2]
[354143853,1740283843491,-500.0,0.0001424,2]
[354143855,1740283843501,-500.0,0.0001424,2]
[354143857,1740283843510,-789.68,0.0001424,2]
[354143859,1740283843519,-500.0,0.00014241,2]
[354143861,1740283843528,-536.33,0.00014241,2]
[354143863,1740283843538,-419.34507076,0.00014241,2]
[354143865,1740283843547,-500.0,0.00014241,2]
[354143866,1740283843557,-166.6632514,0.00014241,2]
[354143868,1740283843566,-500.0,0.00014241,2]
[354143870,1740283843576,-500.0,0.00014241,2]
[354143872,1740283843586,-500.0,0.00014241,2]
[354143874,1740283843595,-500.0,0.00014241,2]
[354143876,1740283843604,-500.0,0.00014241,2]
[354143877,1740283843614,-500.0,0.00014241,2]
[354143879,1740283843623,-185.16919088,0.00014241,2]
[354143881,1740283843634,-500.0,0.00014243,2]
[354143883,1740283843644,-500.0,0.00014243,2]
[354143885,1740283843654,-500.0,0.00014323,2]
[354143887,1740283843663,-500.0,0.00014323,2]
[354143889,1740283843673,-500.0,0.00014323,2]
[354143891,1740283843683,-500.0,0.00014323,2]
[354143893,1740283843693,-500.0,0.00014323,2]
[354143894,1740283843703,-500.0,0.00014323,2]
[354143896,1740283843713,-2154.19,0.00014323,2]
[354143898,1740283843722,-500.0,0.00014323,2]
[354143900,1740283843732,-5510.91,0.00014323,2]
[354143902,1740283843745,-500.0,0.00014323,2]
[354143904,1740283843754,-673.35,0.00014323,2]
[354143906,1740283843763,-1071.43,0.00014323,2]
[354143908,1740283843773,-500.0,0.00014323,2]
[354143910,1740283843783,-517.93,0.00014323,2]
[354143911,1740283843792,-869.66,0.00014323,2]
[354143913,1740283843802,-500.0,0.00014323,2]
[354143915,1740283843811,-500.0,0.00014323,2]
[354143917,1740283843822,-500.0,0.00014323,2]
[354143919,1740283843833,-500.0,0.00014323,2]
[354143921,1740283843842,-789.68,0.00014323,2]
[354143923,1740283843851,-500.0,0.00014324,2]
[354143925,1740283843860,-536.33,0.00014324,2]
[354143926,1740283843870,-500.0,0.00014324,2]
[354143928,1740283843880,-500.0,0.00014324,2]
[354143930,1740283843890,-186.55904907,0.00014325,2]
[354143932,1740283843899,-269.92624059,0.00014364,2]
[354143934,1740283843909,-500.0,0.00014405,2]
[354143936,1740283843919,-500.0,0.00014405,2]
[354143938,1740283843929,-311.64920822,0.00014405,2]
[354143940,1740283843938,-500.0,0.00014405,2]
[354143942,1740283843947,-500.0,0.00014405,2]
[354143944,1740283843957,-500.0,0.00014405,2]
[354143946,1740283843967,-2154.19,0.00014405,2]
[354143948,1740283843976,-500.0,0.00014405,2]
[354143949,1740283843986,-5510.91,0.00014405,2]
[354143951,1740283843996,-500.0,0.00014405,2]
[354143953,1740283844007,-1071.43,0.00014405,2]
[354143955,1740283844016,-500.0,0.00014405,2]
[354143957,1740283844026,-517.93,0.00014405,2]
[354143959,1740283844035,-869.66,0.00014405,2]
[354143961,1740283844044,-500.0,0.00014405,2]
[354143963,1740283844053,-500.0,0.00014405,2]
[354143965,1740283844062,-500.0,0.00014405,2]
[354143966,1740283844072,-500.0,0.00014405,2]
[354143968,1740283844083,-789.68,0.00014405,2]
[354143970,1740283844093,-324.28010349,0.00014406,2]
[354143972,1740283844103,-536.33,0.00014406,2]
[354143974,1740283844113,-500.0,0.00014406,2]
[354143976,1740283844122,-500.0,0.00014406,2]
[354143978,1740283844132,-500.0,0.00014487,2]
[354143980,1740283844141,-500.0,0.00014487,2]
[354143981,1740283844150,-500.0,0.00014487,2]
[354143983,1740283844160,-500.0,0.00014487,2]
[354143985,1740283844170,-500.0,0.00014487,2]
[354143987,1740283844182,-2154.19,0.00014487,2]
[354143989,1740283844191,-500.0,0.00014487,2]
[354143991,1740283844201,-5510.91,0.00014487,2]
[354143993,1740283844210,-500.0,0.00014487,2]
[354143995,1740283844220,-1071.43,0.00014487,2]
[354143997,1740283844230,-500.0,0.00014487,2]
[354143999,1740283844239,-517.93,0.00014487,2]
[354144001,1740283844249,-869.66,0.00014487,2]
[354144003,1740283844258,-500.0,0.00014487,2]
[354144005,1740283844267,-380.26974883,0.00014487,2]
[354144007,1740283844276,-500.0,0.00014487,2]
[354144009,1740283844286,-500.0,0.00014487,2]
[354144011,1740283844295,-789.68,0.00014487,2]
[354144013,1740283844306,-536.33,0.00014488,2]
[354144015,1740283844315,-500.0,0.00014488,2]
[354144017,1740283844325,-500.0,0.00014488,2]
[354144019,1740283844334,-153.0,0.000145,2]
[354144020,1740283844343,-153.0,0.000145,2]
[354144021,1740283844352,-153.0,0.000145,2]
[354144022,1740283844362,-154.8147227,0.000145,2]
[354144024,1740283844372,-153.0,0.000145,2]
[354144026,1740283844382,-154.8147227,0.000145,2]
[354144027,1740283844392,-153.0,0.000145,2]
[354144028,1740283844401,-153.0,0.000145,2]
[354144029,1740283844411,-154.7597756,0.000145,2]
[354144030,1740283844420,-153.0,0.000145,2]
[354144031,1740283844429,-209.0499117,0.000145,2]
[354144032,1740283844534,-309.592814,0.000145,2]
[354144033,1740283844544,-306.0,0.000145,2]
[354144034,1740283844554,-219.0182236,0.00014552,2]
[354144035,1740283844563,-3000.0,0.00014553,2]
[354144036,1740283844573,-500.0,0.00014569,2]
[354144037,1740283844584,-500.0,0.00014569,2]
[354144039,1740283844593,-500.0,0.00014569,2]
[354144040,1740283844603,-500.0,0.00014569,2]
[354144041,1740283844612,-500.0,0.00014569,2]
[354144042,1740283844623,-2154.19,0.00014569,2]
[354144043,1740283844632,-500.0,0.00014569,2]
[354144044,1740283844642,-5510.91,0.00014569,2]
[354144045,1740283844652,-248.04573916,0.00014569,2]
[354144046,1740283844661,-1071.43,0.00014569,2]
[354144047,1740283844671,-500.0,0.00014569,2]
[354144048,1740283844680,-517.93,0.00014569,2]
[354144049,1740283844689,-869.66,0.00014569,2]
[354144050,1740283844699,-500.0,0.00014569,2]
[354144051,1740283844709,-500.0,0.00014569,2]
[354144052,1740283844718,-500.0,0.00014569,2]
[354144053,1740283844728,-789.68,0.00014569,2]
[354144054,1740283844738,-536.33,0.0001457,2]
[354144055,1740283844749,-500.0,0.0001457,2]
[354144056,1740283844758,-500.0,0.0001457,2]
[354144057,1740283844768,-13279.54588923,0.00014619,2]
[354144059,1740283844779,-502.47157931,0.00014641,2]
[354144060,1740283844788,-500.0,0.00014641,2]
[354144063,1740283844798,-500.0,0.00014651,2]
[354144065,1740283844807,-500.0,0.00014651,2]
[354144067,1740283844819,-224.28492922,0.00014651,2]
[354144096,1740283851546,294.063357,9.041e-05,2]
[354144135,1740285037928,-194.3713497,0.00013346,2]
[354144136,1740285037938,-526.02212409,0.0001415,2]
[354144137,1740285037947,-500.0,0.00014158,2]
[354144138,1740285037957,-500.0,0.00014158,2]
[354144139,1740285037966,-500.0,0.00014164,2]
[354144140,1740285037975,-500.0,0.00014237,2]
[354144141,1740285037984,-500.0,0.00014237,2]
[354144142,1740285037993,-500.0,0.00014237,2]
[354144143,1740285038002,-500.0,0.00014237,2]
[354144144,1740285038011,-500.0,0.00014237,2]
[354144145,1740285038020,-500.0,0.00014237,2]
[354144146,1740285038029,-1615.65,0.00014237,2]
[354144147,1740285038048,-2304.53677364,0.00014237,2]
[354144148,1740285038063,-1878.88322636,0.00014237,2]
[354144149,1740285038072,-589.18,0.00014237,2]
[354144150,1740285038081,-500.0,0.00014237,2]
[354144151,1740285038091,-803.57,0.00014237,2]
[354144152,1740285038101,-500.0,0.00014237,2]
[354144153,1740285038111,-652.25,0.00014237,2]
[354144154,1740285038120,-500.0,0.00014237,2]
[354144155,1740285038134,-500.0,0.00014237,2]
[354144156,1740285038144,-592.26,0.00014237,2]
[354144157,1740285038153,-500.0,0.00014237,2]
[354144158,1740285038163,-500.0,0.00014238,2]
[354144159,1740285038173,-500.0,0.00014238,2]
[354144160,1740285038183,-500.0,0.00014238,2]
[354144161,1740285038192,-500.0,0.00014238,2]
[354144162,1740285038204,-310.26753223,0.00014238,2]
[354144184,1740285096914,297.001027,9.041e-05,2]
[354144205,1740286238084,-293.9556871,0.00013237,2]
[354144206,1740286238094,-300.0,0.00013925,2]
[354144207,1740286238103,-13279.54588923,0.00013926,2]
[354144208,1740286238112,-700.63005037,0.00014,2]
[354144209,1740286238122,-174.17096562,0.00014136,2]
[354144210,1740286238131,-500.0,0.00014164,2]
[354144211,1740286238140,-200.0,0.000142,15]
[354144212,1740286238149,-200.0,0.000142,15]
[354144213,1740286238158,-200.0,0.000142,15]
[354144214,1740286238168,-200.0,0.000142,14]
[354144215,1740286238177,-200.0,0.000142,14]
[354144217,1740286238187,-12280.91268294,0.00014233,5]
[354144218,1740286238196,-7707.66403557,0.00014234,5]
[354144219,1740286238205,-500.0,0.00014234,2]
[354144220,1740286238214,-500.0,0.00014234,2]
[354144221,1740286238223,-500.0,0.00014234,2]
[354144222,1740286238233,-500.0,0.00014234,2]
[354144223,1740286238242,-500.0,0.00014234,2]
[354144224,1740286238251,-6110.34539819,0.00014234,2]
[354144225,1740286238260,-923.76,0.00014234,2]
[354144226,1740286238269,-1376.92,0.00014234,2]
[354144227,1740286238278,-500.0,0.00014234,2]
[354144228,1740286238288,-500.0,0.00014234,2]
[354144229,1740286238297,-758.22,0.00014234,2]
[354144230,1740286238306,-500.0,0.00014234,2]
[354144231,1740286238316,-502.66052636,0.00014234,2]
[354144232,1740286238325,-500.0,0.00014234,2]
[354144233,1740286238335,-500.0,0.00014235,2]
[354144234,1740286238344,-503.43198699,0.00014235,2]
[354144235,1740286238353,-500.0,0.00014235,2]
[354144236,1740286238362,-500.0,0.00014235,2]
[354144237,1740286238371,-500.0,0.00014235,2]
[354144238,1740286238381,-500.0,0.00014235,2]
[354144239,1740286238390,-500.0,0.00014235,2]
[354144240,1740286238399,-500.0,0.00014235,2]
[354144241,1740286238408,-500.0,0.00014235,2]
[354144242,1740286238418,-500.0,0.00014235,2]
[354144243,1740286238427,-500.0,0.00014235,2]
[354144244,1740286238436,-500.0,0.00014235,2]
[354144245,1740286238445,-1178.38,0.00014235,2]
[354144246,1740286238454,-500.0,0.00014235,2]
[354144247,1740286238464,-545.17,0.00014235,2]
[354144248,1740286238473,-500.0,0.00014235,2]
[354144249,1740286238482,-500.0,0.00014235,2]
[354144250,1740286238491,-500.0,0.00014235,2]
[354144251,1740286238500,-500.0,0.00014235,2]
[354144252,1740286238509,-500.0,0.00014235,2]
[354144253,1740286238518,-500.0,0.00014235,2]
[354144254,1740286238527,-688.29,0.00014235,2]
[354144255,1740286238536,-500.0,0.00014235,2]
[354144256,1740286238545,-500.0,0.00014235,2]
[354144257,1740286238554,-2625.43,0.00014235,2]
[354144258,1740286238564,-500.0,0.00014235,2]
[354144259,1740286238574,-500.0,0.00014235,2]
[354144260,1740286238585,-500.0,0.00014235,2]
[354144261,1740286238594,-500.0,0.00014235,2]
[354144262,1740286238603,-500.0,0.00014235,2]
[354144263,1740286238612,-500.0,0.00014235,2]
[354144264,1740286238622,-4136.18,0.00014235,2]
[354144265,1740286238631,-1821.16,0.00014235,2]
[354144266,1740286238640,-7991.13,0.00014235,2]
[354144267,1740286238650,-500.0,0.00014235,2]
[354144268,1740286238660,-500.0,0.00014235,2]
[354144269,1740286238669,-500.0,0.00014235,2]
[354144270,1740286238678,-502.68791965,0.00014235,2]
[354144271,1740286238688,-500.0,0.00014235,2]
[354144272,1740286238697,-501.42897419,0.00014236,2]
[354144273,1740286238706,-500.0,0.00014236,2]
[354144274,1740286238715,-500.0,0.00014236,2]
[354144275,1740286238724,-500.0,0.00014236,2]
[354144276,1740286238733,-500.0,0.00014236,2]
[354144277,1740286238743,-500.0,0.00014236,2]
[354144278,1740286238752,-500.0,0.00014236,2]
[354144279,1740286238761,-500.0,0.00014236,2]
[354144280,1740286238770,-500.0,0.00014236,2]
[354144281,1740286238779,-500.0,0.00014236,2]
[354144282,1740286238788,-388.40732891,0.00014236,2]
[354144283,1740286238798,-500.0,0.00014236,2]
[354144284,1740286238806,-500.0,0.00014236,2]
[354144285,1740286238815,-500.0,0.00014236,2]
[354144286,1740286238825,-501.06467741,0.00014236,2]
[354144287,1740286238834,-505.60920999,0.00014236,2]
[354144288,1740286238843,-504.65381353,0.00014236,2]
[354144289,1740286238852,-506.72627287,0.00014236,2]
[354144290,1740286238861,-500.0,0.00014236,2]
[354144291,1740286238871,-293.27336758,0.00014236,2]
[354144292,1740286238880,-355.40046549,0.00014236,2]
[354144293,1740286238890,-505.47956264,0.00014236,2]
[354144294,1740286238899,-500.0,0.00014236,2]
[354144295,1740286238908,-500.0,0.00014236,2]
[354144296,1740286238918,-506.10074396,0.00014236,2]
[354144297,1740286238928,-500.0,0.00014236,2]
[354144298,1740286238937,-511.31241512,0.00014236,2]
[354144299,1740286238947,-501.13766246,0.00014236,2]
[354144300,1740286238957,-500.0,0.00014236,2]
[354144301,1740286238966,-500.0,0.00014236,2]
[354144302,1740286238976,-505.92687796,0.00014236,2]
[354144303,1740286238985,-500.0,0.00014236,2]
[354144304,1740286238994,-502.42987115,0.00014236,2]
[354144305,1740286239002,-500.0,0.00014236,2]
[354144306,1740286239012,-500.0,0.00014236,2]
[354144307,1740286239023,-503.3216339,0.00014236,2]
[354144308,1740286239063,-7.94441854,0.00014236,2]
[354144309,1740286239073,-502.17613434,0.00014236,2]
[354144310,1740286239082,-500.0,0.00014236,2]
[354144311,1740286239092,-500.0,0.00014236,2]
[354144312,1740286239103,-500.36237833,0.00014236,2]
[354144313,1740286239114,-500.0,0.00014236,2]
[354144314,1740286239123,-500.0,0.00014236,2]
[354144315,1740286239131,-500.0,0.00014236,2]
[354144316,1740286239140,-505.0100867,0.00014236,2]
[354144317,1740286239149,-16.82605486,0.00014236,2]
[354144318,1740286239160,-487.68144013,0.00014236,2]
[354144319,1740286239169,-166.90292534,0.00014236,2]
[354144320,1740286239179,-500.0,0.00014236,2]
[354144321,1740286239190,-121.69701623,0.00014236,2]
[354144322,1740286239203,-388.03505535,0.00014236,2]
[354144323,1740286239213,-451.96494457,0.00014236,2]
[354144324,1740286239225,-48.03505543,0.00014236,2]
[354144325,1740286239234,-500.0,0.00014236,2]
[354144326,1740286239243,-500.0,0.00014236,2]
[354144327,1740286239252,-500.0,0.00014236,2]
[354144328,1740286239261,-500.0,0.00014236,2]
[354144329,1740286239271,-500.0,0.00014236,2]
[354144330,1740286239280,-500.0,0.00014236,2]
[354144331,1740286239290,-500.0,0.00014236,2]
[354144332,1740286239300,-500.0,0.00014236,2]
[354144333,1740286239309,-500.0,0.00014236,2]
[354144334,1740286239318,-500.0,0.00014237,2]
[354144335,1740286239327,-508.55574884,0.00014237,2]
[354144336,1740286239336,-500.0,0.00014237,2]
[354144337,1740286239346,-504.87381067,0.00014237,2]
[354144338,1740286239355,-505.08528196,0.00014237,2]
[354144339,1740286239364,-507.9130873,0.00014237,2]
[354144340,1740286239373,-503.99422419,0.00014237,2]
[354144341,1740286239382,-500.0,0.00014237,2]
[354144342,1740286239391,-503.75444132,0.00014237,2]
[354144343,1740286239401,-500.0,0.00014237,2]
[354144344,1740286239410,-500.0,0.00014237,2]
[354144345,1740286239419,-500.0,0.00014237,2]
[354144346,1740286239428,-482.72395975,0.00014237,2]
[354144347,1740286239437,-500.0,0.00014237,2]
[354144348,1740286239447,-500.0,0.00014237,2]
[354144349,1740286239456,-503.85726522,0.00014237,2]
[354144350,1740286239465,-500.75567283,0.00014237,2]
[354144351,1740286239475,-500.0,0.00014237,2]
[354144352,1740286239484,-506.31753928,0.00014237,2]
[354144353,1740286239493,-20.41726417,0.00014237,2]
[354144354,1740286239505,-164.14570992,0.00014237,2]
[354144355,1740286239514,-501.07288728,0.00014237,2]
[354144356,1740286239524,-247.87271693,0.00014237,2]
[354144357,1740286239533,-186.79683411,0.00014237,2]
[354144358,1740286239646,-503.5479771,0.00014237,2]
[354144359,1740286239657,-500.0,0.00014237,2]
[354144360,1740286239667,-500.0,0.00014237,2]
[354144361,1740286239677,-503.50918138,0.00014237,2]
[354144362,1740286239686,-501.75151952,0.00014237,2]
[354144363,1740286239695,-599.26708078,0.00014237,2]
[354144364,1740286239704,-347.94541109,0.00014237,2]
[354144365,1740286239715,-155.79034509,0.00014237,2]
[354144366,1740286239724,-504.40889756,0.00014237,2]
[354144367,1740286239733,-502.87190614,0.00014237,2]
[354144368,1740286239742,-500.0,0.00014237,2]
[354144369,1740286239751,-500.0,0.00014237,2]
[354144370,1740286239760,-500.0,0.00014237,2]
[354144371,1740286239770,-505.45727883,0.00014237,2]
[354144372,1740286239780,-506.32039099,0.00014237,2]
[354144373,1740286239791,-140.51629427,0.00014237,2]
[354144374,1740286239805,-364.37836365,0.00014237,2]
[354144375,1740286239814,-500.0,0.00014237,2]
[354144376,1740286239823,-500.0,0.00014237,2]
[354144377,1740286239832,-501.59658163,0.00014237,2]
[354144378,1740286239841,-503.94008188,0.00014237,2]
[354144379,1740286239850,-500.0,0.00014237,2]
[354144380,1740286239859,-500.0,0.00014237,2]
[354144382,1740286239868,-1000.0,0.00014237,2]
[354144383,1740286239877,-500.0,0.00014237,2]
[354144384,1740286239887,-500.0,0.00014237,2]
[354144385,1740286239897,-500.0,0.00014237,2]
[354144386,1740286239907,-500.0,0.00014237,2]
[354144387,1740286239917,-500.0,0.00014237,2]
[354144388,1740286239926,-500.0,0.00014237,2]
[354144389,1740286239935,-501.08962982,0.00014237,2]
[354144390,1740286239944,-500.0,0.00014237,2]
[354144391,1740286239952,-239.0967289,0.00014237,2]
[354144392,1740286240466,-261.90485252,0.00014237,2]
[354144393,1740286240475,-500.0,0.00014237,2]
[354144394,1740286240485,-7.51826652,0.00014237,2]
[354144395,1740286240520,-492.48173348,0.00014237,2]
[354144396,1740286240529,-500.0,0.00014316,2]
[354144397,1740286240539,-500.0,0.00014316,2]
[354144398,1740286240550,-500.0,0.00014316,2]
[354144399,1740286240559,-500.0,0.00014316,2]
[354144400,1740286240569,-315.8212098,0.00014316,2]
[354144401,1740286240580,-923.76,0.00014316,2]
[354144402,1740286240590,-1376.92,0.00014316,2]
[354144403,1740286240599,-500.0,0.00014316,2]
[354144404,1740286240608,-500.0,0.00014316,2]
[354144405,1740286240618,-758.22,0.00014316,2]
[354144406,1740286240627,-500.0,0.00014316,2]
[354144407,1740286240636,-500.0,0.00014316,2]
[354144408,1740286240648,-626.44028275,0.00014317,2]
[354144409,1740286240657,-212.93320502,0.00014317,2]
[354144410,1740286240666,-500.0,0.00014317,2]
[354144411,1740286240675,-500.0,0.00014317,2]
[354144412,1740286240685,-500.0,0.00014317,2]
[354144414,1740286240695,-500.0,0.00014317,2]
[354144416,1740286240703,-500.0,0.00014317,2]
[354144418,1740286240713,-500.0,0.00014317,2]
[354144420,1740286240722,-1178.38,0.00014317,2]
[354144421,1740286240731,-545.17,0.00014317,2]
[354144422,1740286240739,-500.0,0.00014317,2]
[354144423,1740286240748,-500.0,0.00014317,2]
[354144424,1740286240757,-500.0,0.00014317,2]
[354144425,1740286240766,-500.0,0.00014317,2]
[354144426,1740286240775,-500.0,0.00014317,2]
[354144427,1740286240784,-688.29,0.00014317,2]
[354144428,1740286240796,-500.0,0.00014317,2]
[354144429,1740286240805,-500.0,0.00014317,2]
[354144430,1740286240815,-2625.43,0.00014317,2]
[354144431,1740286240824,-500.0,0.00014317,2]
[354144432,1740286240833,-500.0,0.00014317,2]